[Event "Najdorf Memorial-A 2022"]
[Site "Warsaw"]
[Date "2022.07.17"]
[Round "9.18"]
[White "Rejniak, Zuzanna"]
[Black "Szwaj, Jacek"]
[Result "0-1"]
[ECO "C18"]
[WhiteElo "1813"]
[BlackElo "1938"]
[Annotator "TA"]
[PlyCount "86"]
[EventDate "2022.07.09"]
[EventType "swiss"]
[EventCountry "POL"]
[SourceTitle "playchess.com"]
[Source "ChessBase"]
[SourceQuality "1"]
[TimeControl "40/5400+30:1800+30"]

{[%evp 14,86,12,5,23,20,36,8,29,27,93,83,87,67,83,74,83,85,92,19,50,50,56,0,40,-24,-24,-24,-24,-34,12,6,28,6,37,35,71,70,69,-60,-61,-89,-53,-112,-108,-290,-281,-1123,-1116,-1217,-1216,-1275,-1207,-29988,-883,-922,-945,-1006,-979,-843,-693,-879,-866,-29988,-29989,-29989,-29990,-29990,-29991,-29991,-29992,-29992,-29990,-29990,-29991]} 1. e4 e6 {[%emt 0:00:04]} 2. d4 {[%emt 0:00:11]} d5 {[%emt 0:00:05]} 3. Nc3 {[%emt 0:00:04]} Bb4 {[%emt 0:00:19]} 4. e5 {[%emt 0:00:06]} c5 {[%emt 0:00:12]} 5. a3 {[%emt 0:00:21][%cal Ba2a3,Ba3a4][%mdl 32]} Bxc3+ {[%emt 0:00:05]} 6. bxc3 {[%emt 0:00:04]} Ne7 {[%emt 0:00:10]} 7. Qg4 {[%emt 0:00:04]} Kf8 {[%emt 0:00:09]} 8. a4 {[%emt 0:00:15] 8.h4 is setting a new trend.} Qa5 {[%emt 0:01:58] C18: French: 3 Nc3 Bb4: Main line: 7 h4 and 7 Qg4.} 9. Bd2 {[%emt 0:08:36]} c4 {[%emt 0:00:18]} 10. Qd1 {[%emt 0:01:57]} Nbc6 {[%emt 0:05:27] [#] The position is equal.} 11. Be2 $146 {[%emt 0:03:52]} ({Predecessor:} 11. Ne2 Bd7 12. Ng3 h6 13. Be2 Nd8 14. Nh5 Kg8 15. O-O Rh7 16. f4 Kh8 17. g4 {1-0 (54) Haugen,A (2467)-Galanov,S (2536) ICCF email 2014}) 11... b5 {[%emt 0:02:01]} (11... Kg8 $11) 12. axb5 $16 {[%emt 0:01:04]} Qxb5 {[%emt 0:00:04]} 13. Nh3 {[%emt 0:00:24]} a5 {[%emt 0:00:33]} 14. O-O {[%emt 0:00:43]} a4 {[%emt 0:02:53]} 15. Bh5 {[%emt 0:07:15]} h6 {[%emt 0:02:09]} 16. f4 {[%emt 0:10:53]} (16. Bc1 $16) 16... g6 {[%emt 0:00:54]} 17. Bf3 {[%emt 0:01:18]} h5 {[%emt 0:01:18]} 18. Nf2 {[%emt 0:04:02]} (18. Bc1 $14) 18... Nf5 {[%emt 0:06:27][%cal Be7f5,Bf5g3,Bg3e4][%mdl 32]} 19. g3 {[%emt 0:05:46]} (19. Bc1 $14) 19... Qa5 $11 {[%emt 0:00:41]} 20. Kg2 {[%emt 0:04:54]} Bd7 {[%emt 0:01:08]} 21. h3 {[%emt 0:02:18]} h4 {[%emt 0:03:38]} (21... Rb8 $15 22. Qc1 Kg7) 22. g4 {[%emt 0:00:29]} Ng3 {[%emt 0:00:05]} 23. Re1 {[%emt 0:02:30]} Ne7 {[%emt 0:00:56]} 24. Rg1 {[%emt 0:07:10]} Bc6 {[%emt 0:03:30]} 25. Qe1 {[%emt 0:01:18]} Rb8 {[%emt 0:01:58]} 26. Rb1 {[%emt 0:07:36]} (26. Bc1 $14) 26... Rxb1 $15 {[%emt 0:16:14]} 27. Qxb1 {[%emt 0:00:06][%cal Of4f5]} Ne4 {[%emt 0:02:11] Pair of Knights!} 28. Be1 {[%emt 0:03:36]} (28. Bc1 $15) 28... Kg7 {[%emt 0:01:28] Black is more active.} (28... Nxc3 $2 29. Qa1 $18) 29. Kh2 $2 {[%emt 0:04:27] Now White is beyond hope.} (29. Qa2 $17) 29... a3 $19 {[%emt 0:01:43][%cal Ba4a3,Ba3a2][%mdl 32] [#] And now ...a2 would win.} ({Don't take} 29... Nxc3 30. Qa1 $18) 30. Bxe4 $2 {[%emt 0:03:36]} (30. Qa2 Nxf2 31. Bxf2) 30... a2 {[%emt 0:01:16]} 31. Qa1 {[%emt 0:00:08]} dxe4 {[%emt 0:00:24]} 32. Bd2 {[%emt 0:00:06]} Rb8 {[%emt 0:00:36]} 33. Rc1 {[%emt 0:00:05]} Qa3 {[%emt 0:00:49]} (33... e3 $142 34. Rg1 exf2 35. f5 fxg1=R 36. Qxg1 a1=Q 37. Bh6+ Kxh6 38. g5+ Kg7 39. Qxa1 Qxa1 40. d5 Bxd5 41. f6+ Kh7 42. fxe7 Qh1#) 34. Nd1 {[%emt 0:00:21]} Nd5 {[%emt 0:00:23][%cal Oe4e3] [#] Hoping for ...e3!} 35. f5 {[%emt 0:02:18]} exf5 {[%emt 0:06:16]} 36. gxf5 {[%emt 0:00:06]} f6 {[%emt 0:00:28]} 37. fxg6 {[%emt 0:03:41]} fxe5 {[%emt 0:00:30]} 38. dxe5 {[%emt 0:00:39]} Qe7 {[%emt 0:03:19] Black mates.} 39. Ne3 {[%emt 0:04:42]} Qxe5+ {[%emt 0:00:47]} 40. Kh1 {[%emt 0:00:00]} Nxe3 {[%emt 0:00:00]} 41. Bxe3 {[%emt 0:00:11]} Qg3 {[%emt 0:01:32]} 42. Re1 {[%emt 0:00:48]} Qxe1+ {[%emt 0:00:13]} 43. Qxe1 {[%emt 0:00:12]} Rb1 {[%emt 0:00:11] Weighted Error Value: White=0.89/Black=0.29 (precise)} 0-1

[Event "Najdorf Memorial-A 2022"]
[Site "Warsaw"]
[Date "2022.07.17"]
[Round "9.19"]
[White "Adamski, Adam"]
[Black "Spicak, Krzysztof"]
[Result "0-1"]
[ECO "B03"]
[WhiteElo "1784"]
[BlackElo "1858"]
[Annotator "NA COMBH"]
[PlyCount "126"]
[EventDate "2022.07.09"]
[EventType "swiss"]
[EventCountry "POL"]
[SourceTitle "playchess.com"]
[Source "ChessBase"]
[SourceQuality "1"]
[TimeControl "40/5400+30:1800+30"]

1. e4 {[%emt 0:00:02]} Nf6 {[%emt 0:00:12]} 2. e5 {[%emt 0:00:03]} Nd5 {[%emt 0:00:05]} 3. c4 {[%emt 0:00:05]} Nb6 {[%emt 0:00:06]} 4. d4 {[%emt 0:00:05]} d6 {[%emt 0:00:16]} 5. exd6 {[%emt 0:00:11]} cxd6 {[%emt 0:00:26]} 6. Nc3 {[%emt 0:00:34]} g6 {[%emt 0:00:34]} 7. Be3 {[%emt 0:00:49]} Bg7 {[%emt 0:00:06]} 8. Rc1 {[%emt 0:05:07]} O-O {[%emt 0:00:30]} 9. b3 {[%emt 0:00:52]} e5 {[%emt 0:01:29]} 10. dxe5 {[%emt 0:10:32]} dxe5 {[%emt 0:00:25]} 11. Qxd8 {[%emt 0:02:37]} Rxd8 {[%emt 0:00:02]} 12. Rd1 {[%emt 0:07:47]} Rxd1+ {[%emt 0:01:00]} 13. Kxd1 {[%emt 0:00:33]} Be6 {[%emt 0:01:43]} 14. Nb5 {[%emt 0:05:36]} Nc6 {[%emt 0:01:16]} 15. Bd3 {[%emt 0:00:50]} Rd8 {[%emt 0:00:20]} 16. Ke2 {[%emt 0:00:13]} Nc8 {[%emt 0:11:26]} 17. Nc7 {[%emt 0:03:00]} Bd7 {[%emt 0:05:17]} 18. f3 {[%emt 0:04:32]} h6 {[%emt 0:01:00]} 19. Nh3 {[%emt 0:10:50]} Nd4+ {[%emt 0:10:33]} 20. Bxd4 {[%emt 0:00:47]} exd4 {[%emt 0:00:02]} 21. Nf4 {[%emt 0:00:43]} Bc6 {[%emt 0:04:59]} 22. Be4 {[%emt 0:07:27]} Nd6 {[%emt 0:02:37]} 23. Bxc6 {[%emt 0:06:47]} bxc6 {[%emt 0:00:02]} 24. Nd3 {[%emt 0:02:10]} Rd7 {[%emt 0:04:09]} 25. Na6 {[%emt 0:00:25]} Nb7 {[%emt 0:22:28]} 26. Nab4 {[%emt 0:03:42]} Nd8 {[%emt 0:00:15]} 27. Kd2 {[%emt 0:02:51]} a5 {[%emt 0:01:53]} 28. Na6 {[%emt 0:01:52]} Ra7 {[%emt 0:00:34]} 29. Nac5 {[%emt 0:00:17]} Ne6 {[%emt 0:02:39]} 30. Re1 {[%emt 0:00:17]} Nxc5 {[%emt 0:00:31]} 31. Re8+ {[%emt 0:00:22]} Bf8 {[%emt 0:00:23]} 32. Nxc5 {[%emt 0:00:05]} Kg7 {[%emt 0:00:08]} 33. Na4 {[%emt 0:00:42]} Bb4+ {[%emt 0:00:28]} 34. Kd3 {[%emt 0:00:07]} Bd6 {[%emt 0:05:14]} 35. Kxd4 {[%emt 0:06:12]} Bxh2 {[%emt 0:00:05]} 36. Kc5 {[%emt 0:00:20]} Ra6 {[%emt 0:00:07]} 37. Rc8 {[%emt 0:00:15]} Bg1+ {[%emt 0:00:35]} 38. Kd6 {[%emt 0:00:14]} c5+ {[%emt 0:00:53]} 39. Kd5 {[%emt 0:00:24]} Rf6 {[%emt 0:00:16]} 40. Nxc5 {[%emt 0:00:00]} Rf5+ {[%emt 0:00:00]} 41. Kd6 {[%emt 0:12:58]} Rg5 {[%emt 0:01:07]} 42. a3 {[%emt 0:17:32]} Rxg2 {[%emt 0:00:10]} 43. b4 {[%emt 0:00:03]} axb4 {[%emt 0:00:12]} 44. axb4 {[%emt 0:00:05]} h5 {[%emt 0:00:07]} 45. Re8 {[%emt 0:07:54]} h4 {[%emt 0:00:32]} 46. Re4 {[%emt 0:00:14]} g5 {[%emt 0:00:28]} 47. b5 {[%emt 0:00:37]} h3 {[%emt 0:00:13]} 48. Re7 {[%emt 0:01:36]} h2 {[%emt 0:00:19]} 49. Ne6+ {[%emt 0:00:04]} Kf6 {[%emt 0:00:18]} 50. Nc7 {[%emt 0:01:12]} Rd2+ {[%emt 0:00:25]} 51. Nd5+ {[%emt 0:00:04]} Rxd5+ {[%emt 0:00:06]} 52. cxd5 {[%emt 0:00:07]} h1=Q {[%emt 0:00:05]} 53. Rd7 {[%emt 0:00:49]} Qxf3 {[%emt 0:00:11]} 54. Rb7 {[%emt 0:00:30]} g4 {[%emt 0:00:11]} 55. b6 {[%emt 0:00:05]} g3 {[%emt 0:00:11]} 56. Kc6 {[%emt 0:00:36]} g2 {[%emt 0:00:09]} 57. Rd7 {[%emt 0:00:14]} Qc3+ {[%emt 0:00:13]} 58. Kb7 {[%emt 0:00:28]} Qb4 {[%emt 0:00:07]} 59. d6 {[%emt 0:00:39]} Qxb6+ {[%emt 0:00:14]} 60. Kc8 {[%emt 0:00:15]} Bh2 {[%emt 0:00:11]} 61. Re7 {[%emt 0:06:04]} g1=Q {[%emt 0:00:12]} 62. Rc7 {[%emt 0:00:41]} Qg8+ {[%emt 0:00:10]} 63. Kd7 {[%emt 0:00:11]} Qxd6# {[%emt 0:00:07]} 0-1